bitfinex-derivatives/quotes_ETHF0:USTF0_20250817
["timestamp","ask_amount","ask_price","bid_price","bid_amount"]
[1755433299929,1.411,4542.3,4542.2,21.0346]
[1755433300331,1.411,4542.3,4542.2,20.9813]
[1755433300630,1.411,4542.3,4542.2,20.3403]
[1755433300822,1.411,4542.3,4542.2,20.3373]
[1755433301731,1.411,4542.3,4542.2,20.172]
[1755433302032,1.411,4542.2,4542.1,3.2078]
[1755433302225,1.411,4542.2,4542.1,23.3768]
[1755433302425,1.411,4542.2,4542.1,3.2078]
[1755433302926,1.411,4542.2,4542.1,3.7538]
[1755433303125,1.411,4542.2,4542.1,4.0131]
[1755433303433,1.411,4542.2,4542.1,3.6324]
[1755433303630,1.411,4542.2,4542.1,4.0131]
[1755433305135,1.411,4542.2,4542.1,24.1781]
[1755433305529,1.411,4542.2,4542.1,4.0131]
[1755433305725,1.411,4542.2,4542.1,24.1781]
[1755433305930,1.411,4542.2,4542.1,24.2317]
[1755433306533,1.411,4542.2,4542.1,23.3718]
[1755433307630,1.411,4542.2,4542.1,3.2078]
[1755433309638,1.411,4542.2,4542.1,23.3648]
[1755433311635,0.8479,4542.1,4541.6,3.2078]
[1755433311836,1.4277,4541.7,4541.6,3.9939]
[1755433312139,1.4277,4541.7,4541.6,23.8896]
[1755433312339,1.4277,4541.7,4541.6,24.1439]
[1755433312540,1.4277,4541.7,4541.6,24.1974]
[1755433315233,1.4277,4541.7,4541.6,3.2078]
[1755433315438,1.4277,4541.1,4541.0,4.0474]
[1755433315639,1.4277,4541.1,4541.0,24.4356]
[1755433316143,1.4277,4541.1,4541.0,23.3518]
[1755433316340,1.4277,4541.1,4541.0,24.1914]
[1755433316540,1.4277,4541.1,4541.0,24.4366]
[1755433317443,1.4277,4541.1,4541.0,4.2926]
[1755433317641,1.4277,4541.1,4540.5,3.64807]
[1755433317941,0.4783,4540.9,4540.8,0.7165]
[1755433318338,0.5798,4541.4,4541.3,0.4507]
[1755433318537,0.9494,4541.4,4541.3,1.0848]
[1755433318938,1.4277,4541.4,4541.3,1.0848]
[1755433319133,1.4277,4541.4,4541.0,3.2078]
[1755433319337,3.2078,4542.5,4541.9,0.7861]
[1755433319538,1.4277,4542.1,4542.0,0.8396]
[1755433319739,1.4277,4542.1,4541.6,0.3889]
[1755433319934,1.4277,4541.7,4541.6,20.9411]
[1755433320136,0.8479,4541.6,4541.0,3.5761]
[1755433320339,0.3263,4541.1,4541.0,3.9037]
[1755433320540,0.8046,4541.1,4541.0,3.9037]
[1755433320744,0.6414,4541.1,4541.0,3.9037]
[1755433320940,0.6414,4541.1,4541.0,4.2926]
[1755433321136,1.0581,4541.1,4541.0,4.2926]
[1755433321344,1.4277,4541.1,4541.0,24.2034]
[1755433321748,1.4277,4541.1,4541.0,24.4486]
[1755433322234,1.4277,4541.1,4541.0,4.0268]
[1755433322439,1.4277,4541.1,4541.0,3.2078]
[1755433323053,1.4277,4541.1,4541.0,0.3683]
[1755433323446,1.4277,4541.1,4541.0,0.7861]
[1755433324944,0.9494,4541.1,4540.4,4.01637]
[1755433325144,0.8046,4540.6,4540.5,21.2418]
[1755433327045,0.8226,4541.3,4541.2,0.4507]
[1755433327243,1.4277,4541.3,4541.2,0.8067]
[1755433327445,1.4277,4541.3,4541.2,0.7861]
[1755433327649,1.4277,4541.3,4541.2,0.3683]
[1755433328245,1.0581,4541.3,4541.0,20.155]
[1755433328450,0.5798,4541.9,4541.8,0.1635]
[1755433328752,0.5798,4541.9,4541.8,0.5318]
[1755433329148,1.4277,4541.9,4541.8,0.1635]
[1755433329549,1.4277,4541.9,4541.5,0.3683]
[1755433329752,0.5798,4541.6,4541.1,20.161]
[1755433330051,1.4277,4541.3,4541.2,0.4178]
[1755433330355,1.4277,4541.0,4540.9,0.4178]
[1755433330854,1.4277,4541.0,4540.9,0.7861]
[1755433331451,0.3696,4541.5,4540.9,0.8396]
[1755433331653,0.1632,4541.1,4541.0,1.0848]
[1755433331859,0.2355,4541.5,4541.2,0.819]
[1755433332060,1.1922,4541.5,4541.4,1.0848]
[1755433332260,1.1922,4541.5,4541.4,0.7861]
[1755433332562,0.5798,4541.5,4541.1,0.3683]
[1755433332861,1.4277,4541.2,4541.1,0.7861]
[1755433333066,1.4277,4541.2,4541.1,0.819]
[1755433333759,1.4277,4541.2,4541.1,0.8396]
[1755433333958,0.3696,4541.7,4540.6,0.44026]
[1755433334161,1.4277,4540.8,4540.7,20.6383]
[1755433334357,0.6415,4540.7,4540.6,20.162]
[1755433334656,0.8479,4541.0,4540.7,0.6341]
[1755433334852,3.2078,4541.8,4540.9,0.8396]
[1755433335057,0.1632,4541.0,4540.9,0.4507]
[1755433335255,1.4277,4541.0,4540.9,0.4507]
[1755433335759,1.4277,4541.0,4540.9,1.0848]
[1755433336158,1.0581,4541.0,4540.9,1.0848]
[1755433336353,1.4277,4541.0,4540.9,1.0848]
[1755433336557,1.4277,4541.0,4540.9,0.819]
[1755433337161,1.4277,4541.0,4540.9,0.8396]
[1755433338759,1.4591,4540.9,4540.8,20.3206]
[1755433339259,0.022,4541.9,4540.4,3.2078]
[1755433339260,1.4591,4540.8,4540.7,20.159]
[1755433339458,0.8626,4540.7,4540.6,0.1566]
[1755433339662,1.0965,4540.7,4540.6,20.945]
[1755433340267,1.4591,4540.7,4540.6,20.158]
[1755433340468,1.0965,4540.7,4540.6,20.945]
[1755433340662,1.4591,4540.7,4540.6,20.945]
[1755433340865,1.4591,4540.7,4540.6,20.9773]
[1755433341067,1.4591,4540.7,4540.6,20.9975]
[1755433341868,0.5965,4540.5,4540.4,3.6225]
[1755433342068,1.4591,4540.5,4540.4,3.9279]
[1755433342570,1.4591,4540.5,4540.4,4.3002]
[1755433343567,1.0965,4540.5,4540.4,3.2078]
[1755433343873,1.4591,4540.5,4540.4,4.3002]
[1755433344472,0.6839,4541.0,4540.9,0.2581]
[1755433344671,1.0965,4541.0,4540.9,0.5289]
[1755433345071,1.4591,4541.0,4540.9,0.5289]
[1755433346277,1.4591,4541.0,4540.9,1.0924]
[1755433347271,1.4591,4541.0,4540.9,0.8395]
[1755433347771,1.4591,4541.0,4540.9,1.0924]
[1755433348673,1.4591,4541.0,4540.9,0.8395]
[1755433349575,0.8626,4541.9,4540.9,0.6999]
[1755433349783,0.57157836,4541.8,4541.0,0.2529]
[1755433349976,1.16807836,4541.7,4541.6,0.1566]
[1755433350185,1.4591,4541.7,4541.6,0.1566]
[1755433350375,2.03067681,4541.7,4541.6,0.5289]
[1755433350576,2.03067681,4541.7,4541.6,0.787]
[1755433351477,0.5965,4541.4,4541.3,0.787]
[1755433351677,4.6669,4541.4,4541.3,0.787]
[1755433352580,0.5965,4540.6,4540.5,20.9483]
[1755433352784,1.4591,4540.6,4540.5,20.9685]
[1755433353080,1.4591,4540.6,4540.5,0.8395]
[1755433353282,1.4591,4540.6,4540.5,1.0924]
[1755433355084,1.0965,4540.6,4540.5,0.8193]
[1755433355382,0.5965,4540.4,4540.3,23.8657]
[1755433355583,1.4591,4540.4,4540.3,23.8657]
[1755433355783,1.4591,4540.4,4540.3,24.1238]
[1755433355979,1.4591,4540.4,4540.3,24.1763]
[1755433358885,1.4591,4540.4,4540.3,24.4292]
[1755433359083,1.4591,4540.4,4540.3,23.3368]
[1755433359287,1.4591,4540.4,4540.3,3.2078]
[1755433359482,1.4591,4540.4,4540.3,3.9948]
[1755433359686,1.4591,4540.4,4540.3,3.5801]
[1755433360081,1.0965,4540.4,4540.3,3.5801]
[1755433360281,1.0965,4540.4,4540.3,4.3002]
[1755433360580,1.4591,4540.4,4540.3,4.0473]
[1755433360980,1.4591,4540.4,4540.3,24.1863]
[1755433361180,1.4591,4540.4,4540.3,4.0473]
[1755433361486,1.4591,4540.4,4540.3,24.1661]
[1755433361675,1.4591,4540.4,4540.3,24.1863]
[1755433362077,1.4591,4540.4,4540.3,24.4392]
[1755433362288,0.8378,4540.4,4540.3,24.4392]
[1755433362490,0.5,4540.6,4540.3,24.4392]
[1755433362682,0.5,4540.6,4540.5,1.0924]
[1755433362990,1.4591,4540.6,4540.5,1.0924]
[1755433363187,1.0965,4540.6,4540.5,1.0924]
[1755433363487,1.4591,4540.6,4540.5,1.0924]
[1755433363984,1.0465,4540.6,4540.5,0.6829]
[1755433364190,0.8375,4540.4,4540.3,3.2078]
[1755433364486,1.4591,4540.4,4540.3,3.2078]
[1755433364878,1.4591,4540.4,4540.3,3.5801]
[1755433365082,1.4591,4540.4,4540.3,3.9948]
[1755433365282,1.4591,4540.4,4540.3,3.2078]
[1755433366189,1.4591,4540.4,4539.8,20.96583]
[1755433366190,0.5965,4540.4,4539.8,3.2078]
[1755433366384,1.4591,4539.9,4539.8,3.2078]
[1755433366785,1.4591,4539.9,4539.8,3.7367]
[1755433367987,1.4591,4539.9,4539.8,3.9789]
[1755433369592,1.0965,4539.9,4539.8,4.2888]
[1755433369983,1.0965,4539.9,4539.8,3.2078]
[1755433370187,1.4711,4539.9,4539.8,4.2757]
[1755433370387,1.4711,4539.9,4539.8,3.2078]
[1755433370592,1.4711,4539.9,4539.8,3.9981]
[1755433370895,1.4711,4539.9,4539.8,4.0189]
[1755433371487,1.4711,4539.9,4539.8,3.9981]
[1755433371690,1.4711,4539.9,4539.8,3.9648]
[1755433372797,1.4711,4539.9,4539.8,3.9856]
[1755433373092,1.4711,4539.9,4539.8,3.9648]
[1755433373790,1.4711,4539.9,4539.8,3.2078]
[1755433374791,1.4711,4539.9,4539.8,3.3652]
[1755433374996,1.4711,4539.9,4539.8,3.2078]
[1755433375496,1.4711,4539.9,4539.8,3.9648]
[1755433377186,1.4711,4539.9,4539.8,0.757]
[1755433377901,1.4576,4539.6,4539.5,0.757]
[1755433378090,1.4576,4539.6,4539.5,0.1574]
[1755433378296,1.4576,4539.6,4539.5,0.5148]
[1755433378491,1.4576,4539.6,4539.5,0.757]
[1755433378792,0.88,4540.4,4539.6,0.3574]
[1755433378995,3.2078,4540.5,4539.6,0.2776]
[1755433379196,3.2078,4540.5,4539.7,0.8111]
[1755433379197,0.1722,4539.8,4539.7,0.8111]
[1755433379398,1.4576,4539.8,4539.7,1.0679]
[1755433379995,1.4576,4539.8,4539.7,0.8111]
[1755433380192,1.4576,4539.8,4539.7,0.757]
[1755433380394,1.4576,4539.8,4539.7,0.8111]
[1755433381391,0.1693,4539.5,4539.4,0.7778]
[1755433381597,0.5776,4539.5,4539.4,0.3996]
[1755433381904,1.4576,4539.5,4539.4,1.0679]
[1755433382796,0.8469,4539.5,4539.4,1.0679]
[1755433383702,1.4576,4539.5,4539.4,1.0679]
[1755433383906,1.083,4539.5,4539.4,0.4329]
[1755433384106,1.083,4539.5,4539.4,1.0679]
[1755433384107,1.4576,4539.5,4539.4,1.0679]
[1755433384801,0.2453,4540.3,4539.4,0.4329]
[1755433385100,1.2123,4539.6,4539.5,0.4329]
[1755433385401,0.5054,4539.5,4539.3,3.2078]
[1755433385598,0.9522,4539.4,4539.3,3.6074]
[1755433385799,1.4576,4539.4,4539.3,3.9981]
[1755433386000,1.4576,4539.4,4539.3,4.0189]
[1755433386303,1.4576,4539.4,4539.3,4.2757]
[1755433387903,1.4576,4539.4,4539.3,3.2078]
[1755433388104,1.4576,4539.4,4539.3,3.9981]
[1755433388501,1.4576,4539.4,4539.3,4.0189]
[1755433388706,1.4576,4539.4,4539.3,4.2757]
[1755433391310,0.5054,4540.3,4539.3,4.71608]
[1755433391509,1.083,4540.1,4540.0,0.1574]
[1755433391710,1.4576,4540.1,4540.0,0.5148]
[1755433392003,0.2601,4540.3,4540.1,0.635]
[1755433392311,0.8469,4540.3,4540.2,1.0679]
[1755433392508,0.5054,4540.3,4540.2,1.0679]
[1755433394009,0.8469,4540.3,4540.2,1.0679]
[1755433394307,1.4576,4540.3,4540.2,1.0679]
[1755433396707,4.6654,4540.3,4540.2,1.0679]
[1755433396910,4.6654,4540.3,4540.2,0.8111]
[1755433397307,4.16,4540.3,4539.4,0.2776]
[1755433397508,1.4211,4539.5,4539.4,0.7874]
[1755433397707,1.4211,4539.5,4539.4,0.8409]
[1755433398412,1.4194,4539.4,4539.3,3.2078]
[1755433399214,1.0478,4539.4,4539.3,4.0009]
[1755433399411,1.4194,4539.4,4539.3,4.0544]
[1755433399612,1.4194,4539.4,4539.3,4.3027]
[1755433399813,1.4194,4539.4,4539.3,4.0338]
[1755433400011,1.4194,4539.4,4539.3,4.0343]
[1755433400212,0.8023,4539.6,4539.5,0.4634]
[1755433400518,0.8023,4539.6,4539.5,1.0957]
[1755433400519,1.4194,4539.6,4539.5,1.0957]
[1755433402816,1.4194,4539.6,4539.5,0.8474]
[1755433403010,1.4194,4539.6,4539.5,0.8265]
[1755433405022,1.4194,4539.6,4539.5,0.7931]
[1755433410624,1.4194,4539.6,4539.5,1.0957]
[1755433411822,1.4194,4539.6,4539.5,0.8474]
[1755433414523,1.4194,4539.6,4539.3,3.2078]
[1755433414725,1.4194,4539.4,4539.3,3.2078]
[1755433414923,1.4194,4539.4,4539.3,3.5709]
[1755433415123,1.4194,4539.4,4539.3,3.7404]
[1755433415324,1.4194,4539.4,4539.3,4.0218]
[1755433415527,1.4194,4539.4,4539.3,4.0552]
[1755433418636,3.2078,4540.3,4539.3,4.49558]
[1755433418934,1.4194,4540.1,4540.0,0.5326]
[1755433419332,1.4194,4540.0,4539.9,0.43]
[1755433419532,1.4194,4540.0,4539.9,0.7931]
[1755433420437,1.4194,4540.0,4539.9,0.5326]
[1755433420637,0.5759,4539.4,4539.3,4.0009]
[1755433420829,1.4194,4539.4,4539.3,4.0009]
[1755433421034,1.4194,4539.4,4539.3,4.0343]
[1755433421235,1.4194,4539.4,4539.3,4.3035]
[1755433423143,1.4194,4539.4,4539.3,3.6378]
[1755433423341,1.4194,4539.4,4539.3,4.0009]
[1755433423836,0.7901,4539.7,4539.6,0.0334]
[1755433424034,0.7901,4539.7,4539.6,0.8474]
[1755433424035,0.5759,4539.7,4539.6,0.8474]
[1755433424231,0.812,4539.7,4539.6,0.8474]
[1755433424437,1.0478,4539.7,4539.6,0.8265]
[1755433424632,1.4194,4539.7,4539.6,0.8265]
[1755433424937,1.4194,4539.7,4539.6,0.8474]
[1755433427042,1.4194,4539.7,4539.6,1.0957]
[1755433427740,3.2078,4540.3,4539.6,1.0957]
[1755433427741,3.2078,4540.3,4539.6,0.8265]
[1755433428038,1.431,4539.7,4539.6,1.099]
[1755433429345,0.4845,4540.2,4539.7,0.44034]
[1755433429539,1.1861,4540.2,4540.1,0.8604]
[1755433429744,3.2078,4540.3,4540.2,1.1118]
[1755433429942,3.4474,4540.3,4540.2,1.1118]
[1755433430144,3.6923,4540.3,4540.2,1.1118]
[1755433430344,3.8497,4540.3,4540.2,1.1118]
[1755433430545,4.0189,4540.3,4540.2,1.1118]
[1755433430747,4.3792,4540.3,4540.2,1.1118]
[1755433430942,4.0189,4540.3,4540.2,1.1118]
[1755433431148,4.2785,4540.3,4540.2,1.1118]
[1755433431341,4.6388,4540.3,4540.2,1.1118]
[1755433431946,0.8111,4540.3,4540.2,1.1118]
[1755433432146,0.6419,4540.3,4540.2,1.1118]
[1755433432849,0.1574,4540.5,4540.4,0.8393]
[1755433433045,0.9465,4540.5,4540.4,0.8393]
[1755433433447,0.2449,4540.5,4540.4,0.8604]
[1755433433644,0.4845,4540.5,4540.4,1.1118]
[1755433434339,0.3603,4540.7,4540.4,1.1118]
[1755433434645,0.8448,4541.6,4540.6,1.1118]
[1755433434945,1.431,4540.9,4540.8,0.8604]
[1755433435949,1.431,4540.9,4540.8,1.1118]
[1755433436843,3.2078,4541.7,4540.8,1.1118]
[1755433437040,0.8311,4541.5,4541.4,0.4171]
[1755433437244,1.431,4541.5,4541.4,0.8266]
[1755433437449,1.431,4541.5,4541.4,0.8604]
[1755433437756,1.431,4541.5,4541.4,1.1118]
[1755433438353,1.431,4541.5,4541.4,0.8604]
[1755433438655,1.431,4541.5,4541.4,1.1118]
[1755433439952,0.5862,4541.7,4541.6,0.4509]
[1755433440147,0.5862,4541.7,4541.6,0.8604]
[1755433440148,1.431,4541.7,4541.6,0.8604]
[1755433440854,1.431,4541.7,4541.6,1.1118]
[1755433441053,1.0707,4541.7,4541.6,1.1118]
[1755433441554,0.8111,4541.7,4541.6,1.1118]
[1755433441756,1.431,4541.7,4541.6,1.1118]
[1755433442745,1.0707,4541.7,4541.6,1.1118]
[1755433442947,1.0707,4541.7,4541.6,4.3196]
[1755433444662,0.4845,4541.7,4541.6,4.3196]
[1755433445458,1.431,4541.7,4541.6,4.3196]
[1755433449762,1.431,4541.7,4541.6,4.0682]
[1755433451066,1.431,4541.7,4541.6,4.3196]
[1755433454367,1.431,4541.7,4541.6,1.1118]
[1755433456074,1.431,4541.7,4541.6,0.8604]
[1755433456264,1.431,4541.7,4541.6,0.8055]
[1755433456777,1.431,4541.2,4541.1,4.0133]
[1755433456965,1.431,4541.2,4541.1,3.2078]
[1755433457166,0.5862,4541.2,4540.6,3.64805]
[1755433457372,1.431,4540.7,4540.6,4.0133]
[1755433457574,1.431,4540.7,4540.6,3.2078]
[1755433457773,1.431,4540.7,4540.6,3.7538]
[1755433458474,1.431,4540.7,4540.6,3.9932]
[1755433458672,0.236,4541.2,4540.6,3.6166]
[1755433458877,1.4279,4541.2,4541.1,1.0826]
[1755433459168,1.4279,4541.2,4541.1,4.2904]
[1755433459474,1.0691,4541.2,4541.1,4.2904]
[1755433459675,1.4279,4541.2,4541.1,4.2904]
[1755433461476,1.4279,4541.2,4541.1,3.2078]
[1755433462375,1.4279,4541.2,4541.1,3.9932]
[1755433462976,1.4279,4541.2,4541.1,3.2078]
[1755433463475,1.4279,4541.2,4541.1,3.5957]
[1755433464573,1.4279,4541.2,4541.1,3.2078]
[1755433465373,0.5765,4540.7,4540.6,3.2078]
[1755433465677,1.4279,4540.7,4540.6,3.2078]
[1755433465975,1.4279,4540.7,4540.6,3.7538]
[1755433466176,1.4279,4540.7,4540.6,3.9932]
[1755433466479,1.4279,4540.7,4540.6,4.0476]
[1755433470277,0.6506,4540.7,4540.6,3.9932]
[1755433470483,1.0691,4541.0,4540.9,0.8398]
[1755433470679,1.4279,4541.0,4540.9,1.0826]
[1755433471986,1.4279,4541.0,4540.9,1.52283]
[1755433472287,1.4279,4541.0,4540.9,1.25913]
[1755433472581,1.4279,4541.0,4540.9,1.22563]
[1755433472782,1.4279,4541.0,4540.9,1.24653]
[1755433472982,1.4279,4541.0,4540.9,1.28003]
[1755433474182,1.4279,4541.0,4540.9,1.52283]
[1755433474683,1.4279,4541.0,4540.9,0.59833]
[1755433474984,1.4279,4541.0,4540.9,0.1581]
[1755433475381,1.4279,4541.0,4540.8,0.44023]
[1755433475582,0.5765,4541.0,4540.8,0.44023]
[1755433475784,1.4279,4540.9,4540.8,0.3879]
[1755433476178,1.4279,4540.9,4540.6,23.78295]
[1755433476386,1.4279,4540.7,4540.6,3.2078]
[1755433476784,1.4279,4540.7,4540.6,3.5957]
[1755433476977,1.4279,4540.7,4540.6,3.7538]
[1755433477587,1.4279,4540.7,4540.6,3.9932]
[1755433478490,0.022,4541.4,4540.6,3.6166]
[1755433478491,0.4926,4541.2,4540.6,3.6166]
[1755433478788,1.1682,4540.9,4540.8,1.52283]
[1755433479086,1.4279,4540.9,4540.8,1.52283]
[1755433479782,1.4279,4540.9,4540.8,0.3975]
[1755433479983,0.5765,4540.9,4540.8,0.546]
[1755433480478,1.4279,4540.9,4540.8,0.546]
[1755433482091,1.4279,4540.9,4540.8,0.7854]
[1755433483486,1.4279,4540.9,4540.8,0.8398]
[1755433489293,0.9418,4541.8,4541.7,1.26124]
[1755433489484,0.8151,4541.8,4541.7,21.64504]
[1755433489685,0.6561,4541.8,4541.7,21.64504]
[1755433489984,0.2347,4542.0,4541.9,1.53303]
[1755433490392,0.6484,4542.0,4541.9,1.53303]
[1755433490587,1.4537,4542.0,4541.9,1.53303]
[1755433491689,1.2895,4542.6,4542.5,0.4292]
[1755433491893,1.4537,4542.6,4542.5,0.8413]
[1755433492293,1.4537,4542.6,4542.5,0.8211]
[1755433492597,1.4537,4542.6,4542.5,0.7887]
[1755433492790,1.4537,4542.6,4542.5,0.8413]
[1755433494093,1.4537,4542.6,4542.5,1.0929]
[1755433494989,0.4919,4542.6,4542.5,4.3007]
[1755433495791,0.8151,4542.6,4542.5,4.3007]
[1755433496092,1.4537,4542.6,4542.5,4.3007]
[1755433496790,1.4537,4543.0,4542.9,0.7887]
[1755433499398,1.0698,4543.0,4542.9,0.8215]
[1755433499596,1.4537,4543.0,4542.9,1.0936]
[1755433500298,0.8733,4543.4,4543.3,0.8092]
[1755433500495,1.4537,4543.4,4543.3,20.948]
[1755433500686,1.4537,4543.4,4543.3,20.8947]
[1755433502998,1.4537,4543.4,4543.3,20.948]
[1755433503199,0.8758,4544.0,4543.4,1.09998]
[1755433503401,1.4537,4544.0,4543.9,0.462]
[1755433503594,1.4537,4544.0,4543.9,21.1976]
[1755433504599,1.0698,4544.0,4543.9,21.1976]
[1755433504799,0.1,4544.2,4544.1,1.0936]
[1755433504992,0.1,4544.2,4544.1,4.3014]
[1755433505192,0.1,4544.2,4544.1,4.3234]
[1755433505497,0.8151,4544.9,4544.8,1.53345]
[1755433505692,1.4537,4545.3,4545.2,0.90181]
[1755433505896,1.4537,4545.3,4545.2,21.1956]
[1755433506201,1.4537,4545.3,4545.2,24.4034]
[1755433506602,1.4537,4545.3,4545.2,24.1518]
[1755433507100,1.0698,4545.3,4545.2,24.4034]
[1755433507403,1.4537,4545.3,4545.2,24.4034]
[1755433509302,0.9618,4545.7,4545.6,0.462]
[1755433509499,0.9618,4545.7,4545.6,21.1926]
[1755433509799,0.3232,4545.7,4545.6,21.1926]
[1755433510103,0.4919,4545.7,4545.6,21.1926]
[1755433510604,0.9618,4546.0,4545.9,0.462]
[1755433510900,0.3839,4546.5,4545.9,24.83715]
[1755433511099,0.3839,4546.5,4546.4,0.462]
[1755433511100,0.9618,4546.5,4546.4,0.462]
[1755433511294,1.4537,4546.5,4546.4,20.096]
[1755433512803,1.4537,4546.0,4545.9,3.2078]
[1755433513099,1.4537,4546.0,4545.9,3.7367]
[1755433513298,1.4537,4546.0,4545.9,23.8287]
[1755433514399,1.4537,4546.0,4545.9,24.1418]
[1755433514800,1.4537,4546.0,4545.9,24.1213]
[1755433516399,1.4537,4546.0,4545.9,3.2078]
[1755433517395,1.4537,4546.0,4545.9,4.0293]
[1755433517603,1.4537,4546.0,4545.9,4.2867]
[1755433518801,1.4537,4546.0,4545.9,3.2078]
[1755433519005,0.5733,4545.8,4545.7,20.09]
[1755433519202,0.5733,4545.8,4545.3,3.2078]
[1755433519406,0.5733,4545.4,4545.3,3.2078]
[1755433519603,1.4228,4545.4,4545.3,3.2078]
[1755433519807,1.4228,4545.4,4545.3,3.9815]
[1755433520609,0.4919,4545.4,4545.3,4.7113]
[1755433521702,0.8144,4545.4,4545.3,4.7113]
[1755433522003,1.4228,4545.4,4545.3,4.2715]
[1755433522208,1.4228,4545.4,4545.3,24.1351]
[1755433522406,1.4228,4545.4,4545.3,3.3726]
[1755433522609,1.4228,4545.4,4545.3,23.3258]
[1755433523300,0.0219,4546.2,4544.8,31.689]
[1755433523301,0.4919,4545.3,4544.8,35.2618]
[1755433523502,1.4228,4544.9,4544.8,35.2822]
[1755433523711,1.4228,4544.9,4544.8,3.2078]
[1755433523911,1.4228,4544.9,4544.8,23.3338]
[1755433525303,1.4228,4544.9,4544.8,20.126]
[1755433528610,0.5733,4544.9,4544.7,20.115]
[1755433528914,1.4228,4544.8,4544.7,20.115]
[1755433529315,1.4228,4544.8,4544.7,20.8887]
[1755433529613,1.4228,4544.8,4544.7,20.9417]
[1755433529813,1.4228,4544.8,4544.7,20.8887]
[1755433530214,1.4228,4544.8,4544.7,24.1495]
[1755433530513,1.4228,4544.8,4544.7,24.3865]
[1755433531515,1.4228,4544.8,4544.7,24.1495]
[1755433532214,1.4228,4544.8,4544.7,24.1291]
[1755433533121,1.4228,4544.8,4544.7,24.0965]
[1755433533724,1.4228,4544.8,4544.7,23.4876]
[1755433534521,1.4228,4544.8,4544.7,24.0965]
[1755433534717,1.4228,4544.8,4544.7,24.1495]
[1755433534914,1.99382529,4544.8,4544.7,24.1495]
[1755433535222,1.4228,4544.8,4544.7,24.1495]
[1755433535921,1.4228,4544.8,4544.7,24.3865]
[1755433539620,1.4228,4544.8,4544.7,24.1495]
[1755433539918,1.4228,4544.8,4544.7,24.1291]
[1755433540221,1.4228,4544.8,4544.7,24.0965]
[1755433540421,1.4448,4544.8,4544.7,3.2078]
[1755433540622,1.4228,4544.3,4544.2,3.2078]
[1755433540823,1.4228,4544.3,4544.2,23.3018]
[1755433542823,1.4228,4544.3,4544.2,3.2078]
[1755433543125,1.4228,4544.3,4544.2,23.3038]
[1755433544122,1.4228,4544.3,4544.2,24.0775]
[1755433544429,1.4228,4544.3,4544.2,24.1305]
[1755433544618,1.2228,4544.3,4544.2,24.3675]
[1755433544814,1.3805,4544.3,4544.2,24.3471]
[1755433545426,1.3805,4544.3,4544.2,24.4098]
[1755433546526,1.3805,4544.3,4544.2,24.3471]
[1755433547335,1.3805,4544.3,4544.2,24.0775]
[1755433548134,1.3805,4544.3,4544.2,24.4125]
[1755433548437,1.3805,4544.3,4544.2,24.4746]
[1755433549537,0.3678,4544.3,4544.2,24.4746]
[1755433549737,1.4567,4545.0,4544.9,1.0029]
[1755433550038,1.4567,4545.0,4544.9,21.16]
[1755433550229,1.4567,4545.0,4544.9,21.2593]
[1755433550633,1.4567,4545.0,4544.9,21.0979]
[1755433550937,1.4567,4545.0,4544.9,20.095]
[1755433553035,0.1696,4544.8,4544.7,20.094]
[1755433553236,1.4567,4544.8,4544.7,20.6188]
[1755433553543,1.4567,4544.8,4544.7,21.159]
[1755433553738,1.4567,4544.8,4544.7,21.2583]
[1755433554642,1.4567,4544.8,4544.7,21.1962]
[1755433554831,1.4567,4544.8,4544.7,20.8622]
[1755433557944,1.4567,4544.8,4544.7,21.0969]
[1755433560139,1.4567,4544.8,4544.7,20.8622]
[1755433560340,0.5001,4544.2,4543.7,3.2078]
[1755433560538,0.58,4543.3,4543.2,0.8675]
[1755433560740,1.4567,4543.3,4543.2,0.173]
[1755433561239,1.4567,4543.3,4543.2,0.5248]
[1755433561940,0.2597,4543.8,4543.2,1.1643]
[1755433562141,1.197,4543.7,4543.6,0.5157]
[1755433562342,1.4567,4543.7,4543.6,1.1022]
[1755433562544,1.4567,4543.7,4543.6,0.7682]
[1755433565242,1.4567,4543.7,4543.6,0.173]
[1755433566747,1.4567,4543.7,4543.6,0.5248]
[1755433567551,0.4295,4543.7,4543.6,1.1643]
[1755433567751,3.5844,4544.1,4543.6,1.1643]
[1755433568043,0.4295,4544.0,4543.9,1.1643]
[1755433568246,0.5001,4544.3,4544.0,0.6486]
[1755433568450,1.4567,4544.3,4544.2,1.1643]
[1755433570550,1.4567,4544.3,4544.2,0.7682]
[1755433572052,1.4567,4544.3,4544.2,1.0029]
[1755433572254,1.4567,4544.3,4544.2,1.065]
[1755433572851,1.4567,4544.3,4544.2,1.0029]
[1755433573054,1.4567,4544.3,4544.2,0.7682]
[1755433573852,0.58,4544.0,4543.9,1.0029]
[1755433574160,1.4567,4544.0,4543.9,1.1643]
[1755433587461,3.2298,4544.9,4543.9,0.8125]
[1755433587657,1.4318508,4544.8,4544.0,0.6762]
[1755433587857,0.5723508,4544.7,4544.1,0.6762]
[1755433588058,2.0065508,4544.6,4544.5,0.5242]
[1755433589361,2.0065508,4544.6,4544.3,0.255]
[1755433589556,0.5747,4544.4,4544.3,0.7792]
[1755433589757,2.0065508,4544.4,4544.3,0.5242]